{"text_format":"3","workbook":"xlsx","n_sheets":2,"sheets":["Учет проектов","Настройки"],"not_rendered":{"defined_names":6},"read":"whole","date_system":"1900"}

{"sheet":"Учет проектов","index":0,"n_rows":13,"n_cols":15,"rows_kept":13}
[null,"Учет проектов"]
[null,null,"Пограничный процент отклонения: ",{"v":0.25,"d":"25%"}]
[]
[null,"Проект","Категория","Кому назначен","Прогнозируемый\nзапуск","Прогнозируемое \nзавершение","Прогнозируемые трудозатраты \n(в часах)","Прогнозируемая длительность \n(в днях)","Фактический \nзапуск","Фактическое\nзавершение","Значок отметки отклонения фактических трудозатрат (в часах) от прогнозируемых","Фактические трудозатраты (в часах)","Значок отметки отклонения фактической длительности (в днях) от прогнозируемой","Фактическая длительность (в днях)","Примечания"]
[null,"Проект 1","Категория 1","Сотрудник 1",{"$f":"TODAY()-65","v":"2023-02-08"},{"$f":"TODAY()-5","v":"2023-04-09"},210,{"$f":"IF(COUNTA('Учет проектов'!$E5,'Учет проектов'!$F5)<>2,\"\",DAYS360('Учет проектов'!$E5,'Учет проектов'!$F5,FALSE))","v":61},{"$f":"TODAY()-65","v":"2023-02-08"},{"$f":"TODAY()","v":"2023-04-14"},{"$f":"IFERROR(IF(УчетПроектов[[#This Row],[Фактические трудозатраты (в часах)]]=0,\"\",IF(ABS((УчетПроектов[[#This Row],[Фактические трудозатраты (в часах)]]-УчетПроектов[[#This Row],[Прогнозируемые трудозатраты \n(в часах)]])/УчетПроектов[[#This Row],[Прогнозируемые трудозатраты \n(в часах)]])>ПроцентОтметки,1,0)),\"\")","v":1},300,{"$f":"IFERROR(IF(УчетПроектов[[#This Row],[Фактическая длительность (в днях)]]=0,\"\",IF(ABS((УчетПроектов[[#This Row],[Фактическая длительность (в днях)]]-УчетПроектов[[#This Row],[Прогнозируемая длительность \n(в днях)]])/УчетПроектов[[#This Row],[Прогнозируемая длительность \n(в днях)]])>ПроцентОтметки,1,0)),\"\")","v":0},{"$f":"IF(COUNTA('Учет проектов'!$I5,'Учет проектов'!$J5)<>2,\"\",DAYS360('Учет проектов'!$I5,'Учет проектов'!$J5,FALSE))","v":66}]
[null,"Проект 2","Категория 2","Сотрудник 4",{"$f":"TODAY()-41","v":"2023-03-04"},{"$f":"TODAY()-10","v":"2023-04-04"},400,{"$f":"IF(COUNTA('Учет проектов'!$E6,'Учет проектов'!$F6)<>2,\"\",DAYS360('Учет проектов'!$E6,'Учет проектов'!$F6,FALSE))","v":30},{"$f":"TODAY()-41","v":"2023-03-04"},{"$f":"TODAY()-7","v":"2023-04-07"},{"$f":"IFERROR(IF(УчетПроектов[[#This Row],[Фактические трудозатраты (в часах)]]=0,\"\",IF(ABS((УчетПроектов[[#This Row],[Фактические трудозатраты (в часах)]]-УчетПроектов[[#This Row],[Прогнозируемые трудозатраты \n(в часах)]])/УчетПроектов[[#This Row],[Прогнозируемые трудозатраты \n(в часах)]])>ПроцентОтметки,1,0)),\"\")","v":0},390,{"$f":"IFERROR(IF(УчетПроектов[[#This Row],[Фактическая длительность (в днях)]]=0,\"\",IF(ABS((УчетПроектов[[#This Row],[Фактическая длительность (в днях)]]-УчетПроектов[[#This Row],[Прогнозируемая длительность \n(в днях)]])/УчетПроектов[[#This Row],[Прогнозируемая длительность \n(в днях)]])>ПроцентОтметки,1,0)),\"\")","v":0},{"$f":"IF(COUNTA('Учет проектов'!$I6,'Учет проектов'!$J6)<>2,\"\",DAYS360('Учет проектов'!$I6,'Учет проектов'!$J6,FALSE))","v":33}]
[null,"Проект 3","Категория 1","Сотрудник 2",{"$f":"TODAY()-100","v":"2023-01-04"},{"$f":"TODAY()-40","v":"2023-03-05"},500,{"$f":"IF(COUNTA('Учет проектов'!$E7,'Учет проектов'!$F7)<>2,\"\",DAYS360('Учет проектов'!$E7,'Учет проектов'!$F7,FALSE))","v":61},{"$f":"TODAY()-100","v":"2023-01-04"},{"$f":"TODAY()-27","v":"2023-03-18"},{"$f":"IFERROR(IF(УчетПроектов[[#This Row],[Фактические трудозатраты (в часах)]]=0,\"\",IF(ABS((УчетПроектов[[#This Row],[Фактические трудозатраты (в часах)]]-УчетПроектов[[#This Row],[Прогнозируемые трудозатраты \n(в часах)]])/УчетПроектов[[#This Row],[Прогнозируемые трудозатраты \n(в часах)]])>ПроцентОтметки,1,0)),\"\")","v":0},500,{"$f":"IFERROR(IF(УчетПроектов[[#This Row],[Фактическая длительность (в днях)]]=0,\"\",IF(ABS((УчетПроектов[[#This Row],[Фактическая длительность (в днях)]]-УчетПроектов[[#This Row],[Прогнозируемая длительность \n(в днях)]])/УчетПроектов[[#This Row],[Прогнозируемая длительность \n(в днях)]])>ПроцентОтметки,1,0)),\"\")","v":0},{"$f":"IF(COUNTA('Учет проектов'!$I7,'Учет проектов'!$J7)<>2,\"\",DAYS360('Учет проектов'!$I7,'Учет проектов'!$J7,FALSE))","v":74}]
[null,"Проект 4","Категория 2","Сотрудник 3",{"$f":"TODAY()-90","v":"2023-01-14"},{"$f":"TODAY()-80","v":"2023-01-24"},250,{"$f":"IF(COUNTA('Учет проектов'!$E8,'Учет проектов'!$F8)<>2,\"\",DAYS360('Учет проектов'!$E8,'Учет проектов'!$F8,FALSE))","v":10},{"$f":"TODAY()-90","v":"2023-01-14"},{"$f":"TODAY()-71","v":"2023-02-02"},{"$f":"IFERROR(IF(УчетПроектов[[#This Row],[Фактические трудозатраты (в часах)]]=0,\"\",IF(ABS((УчетПроектов[[#This Row],[Фактические трудозатраты (в часах)]]-УчетПроектов[[#This Row],[Прогнозируемые трудозатраты \n(в часах)]])/УчетПроектов[[#This Row],[Прогнозируемые трудозатраты \n(в часах)]])>ПроцентОтметки,1,0)),\"\")","v":0},276,{"$f":"IFERROR(IF(УчетПроектов[[#This Row],[Фактическая длительность (в днях)]]=0,\"\",IF(ABS((УчетПроектов[[#This Row],[Фактическая длительность (в днях)]]-УчетПроектов[[#This Row],[Прогнозируемая длительность \n(в днях)]])/УчетПроектов[[#This Row],[Прогнозируемая длительность \n(в днях)]])>ПроцентОтметки,1,0)),\"\")","v":1},{"$f":"IF(COUNTA('Учет проектов'!$I8,'Учет проектов'!$J8)<>2,\"\",DAYS360('Учет проектов'!$I8,'Учет проектов'!$J8,FALSE))","v":18}]
[null,"Проект 5","Категория 3","Сотрудник 2",{"$f":"TODAY()-90","v":"2023-01-14"},{"$f":"TODAY()-50","v":"2023-02-23"},300,{"$f":"IF(COUNTA('Учет проектов'!$E9,'Учет проектов'!$F9)<>2,\"\",DAYS360('Учет проектов'!$E9,'Учет проектов'!$F9,FALSE))","v":39},{"$f":"TODAY()-90","v":"2023-01-14"},{"$f":"TODAY()-44","v":"2023-03-01"},{"$f":"IFERROR(IF(УчетПроектов[[#This Row],[Фактические трудозатраты (в часах)]]=0,\"\",IF(ABS((УчетПроектов[[#This Row],[Фактические трудозатраты (в часах)]]-УчетПроектов[[#This Row],[Прогнозируемые трудозатраты \n(в часах)]])/УчетПроектов[[#This Row],[Прогнозируемые трудозатраты \n(в часах)]])>ПроцентОтметки,1,0)),\"\")","v":0},310,{"$f":"IFERROR(IF(УчетПроектов[[#This Row],[Фактическая длительность (в днях)]]=0,\"\",IF(ABS((УчетПроектов[[#This Row],[Фактическая длительность (в днях)]]-УчетПроектов[[#This Row],[Прогнозируемая длительность \n(в днях)]])/УчетПроектов[[#This Row],[Прогнозируемая длительность \n(в днях)]])>ПроцентОтметки,1,0)),\"\")","v":0},{"$f":"IF(COUNTA('Учет проектов'!$I9,'Учет проектов'!$J9)<>2,\"\",DAYS360('Учет проектов'!$I9,'Учет проектов'!$J9,FALSE))","v":47}]
[null,"Проект 6","Категория 4","Сотрудник 4",{"$f":"TODAY()-60","v":"2023-02-13"},{"$f":"TODAY()-50","v":"2023-02-23"},500,{"$f":"IF(COUNTA('Учет проектов'!$E10,'Учет проектов'!$F10)<>2,\"\",DAYS360('Учет проектов'!$E10,'Учет проектов'!$F10,FALSE))","v":10},{"$f":"TODAY()-60","v":"2023-02-13"},{"$f":"TODAY()-45","v":"2023-02-28"},{"$f":"IFERROR(IF(УчетПроектов[[#This Row],[Фактические трудозатраты (в часах)]]=0,\"\",IF(ABS((УчетПроектов[[#This Row],[Фактические трудозатраты (в часах)]]-УчетПроектов[[#This Row],[Прогнозируемые трудозатраты \n(в часах)]])/УчетПроектов[[#This Row],[Прогнозируемые трудозатраты \n(в часах)]])>ПроцентОтметки,1,0)),\"\")","v":0},510,{"$f":"IFERROR(IF(УчетПроектов[[#This Row],[Фактическая длительность (в днях)]]=0,\"\",IF(ABS((УчетПроектов[[#This Row],[Фактическая длительность (в днях)]]-УчетПроектов[[#This Row],[Прогнозируемая длительность \n(в днях)]])/УчетПроектов[[#This Row],[Прогнозируемая длительность \n(в днях)]])>ПроцентОтметки,1,0)),\"\")","v":1},{"$f":"IF(COUNTA('Учет проектов'!$I10,'Учет проектов'!$J10)<>2,\"\",DAYS360('Учет проектов'!$I10,'Учет проектов'!$J10,FALSE))","v":15}]
[null,"Проект 7","Категория 5","Сотрудник 1",{"$f":"TODAY()-44","v":"2023-03-01"},{"$f":"TODAY()-20","v":"2023-03-25"},750,{"$f":"IF(COUNTA('Учет проектов'!$E11,'Учет проектов'!$F11)<>2,\"\",DAYS360('Учет проектов'!$E11,'Учет проектов'!$F11,FALSE))","v":24},{"$f":"TODAY()-44","v":"2023-03-01"},{"$f":"TODAY()-15","v":"2023-03-30"},{"$f":"IFERROR(IF(УчетПроектов[[#This Row],[Фактические трудозатраты (в часах)]]=0,\"\",IF(ABS((УчетПроектов[[#This Row],[Фактические трудозатраты (в часах)]]-УчетПроектов[[#This Row],[Прогнозируемые трудозатраты \n(в часах)]])/УчетПроектов[[#This Row],[Прогнозируемые трудозатраты \n(в часах)]])>ПроцентОтметки,1,0)),\"\")","v":0},790,{"$f":"IFERROR(IF(УчетПроектов[[#This Row],[Фактическая длительность (в днях)]]=0,\"\",IF(ABS((УчетПроектов[[#This Row],[Фактическая длительность (в днях)]]-УчетПроектов[[#This Row],[Прогнозируемая длительность \n(в днях)]])/УчетПроектов[[#This Row],[Прогнозируемая длительность \n(в днях)]])>ПроцентОтметки,1,0)),\"\")","v":0},{"$f":"IF(COUNTA('Учет проектов'!$I11,'Учет проектов'!$J11)<>2,\"\",DAYS360('Учет проектов'!$I11,'Учет проектов'!$J11,FALSE))","v":29}]
[null,"Проект 8","Категория 2","Сотрудник 1",{"$f":"TODAY()-39","v":"2023-03-06"},{"$f":"TODAY()","v":"2023-04-14"},450,{"$f":"IF(COUNTA('Учет проектов'!$E12,'Учет проектов'!$F12)<>2,\"\",DAYS360('Учет проектов'!$E12,'Учет проектов'!$F12,FALSE))","v":38},{"$f":"TODAY()-45","v":"2023-02-28"},{"$f":"TODAY()-5","v":"2023-04-09"},{"$f":"IFERROR(IF(УчетПроектов[[#This Row],[Фактические трудозатраты (в часах)]]=0,\"\",IF(ABS((УчетПроектов[[#This Row],[Фактические трудозатраты (в часах)]]-УчетПроектов[[#This Row],[Прогнозируемые трудозатраты \n(в часах)]])/УчетПроектов[[#This Row],[Прогнозируемые трудозатраты \n(в часах)]])>ПроцентОтметки,1,0)),\"\")","v":0},430,{"$f":"IFERROR(IF(УчетПроектов[[#This Row],[Фактическая длительность (в днях)]]=0,\"\",IF(ABS((УчетПроектов[[#This Row],[Фактическая длительность (в днях)]]-УчетПроектов[[#This Row],[Прогнозируемая длительность \n(в днях)]])/УчетПроектов[[#This Row],[Прогнозируемая длительность \n(в днях)]])>ПроцентОтметки,1,0)),\"\")","v":0},{"$f":"IF(COUNTA('Учет проектов'!$I12,'Учет проектов'!$J12)<>2,\"\",DAYS360('Учет проектов'!$I12,'Учет проектов'!$J12,FALSE))","v":39}]
[null,"Проект 9","Категория 4","Сотрудник 1","2016-02-05","2016-06-09",250,{"$f":"IF(COUNTA('Учет проектов'!$E13,'Учет проектов'!$F13)<>2,\"\",DAYS360('Учет проектов'!$E13,'Учет проектов'!$F13,FALSE))","v":124},"2016-03-05","2016-05-05",{"$f":"IFERROR(IF(УчетПроектов[[#This Row],[Фактические трудозатраты (в часах)]]=0,\"\",IF(ABS((УчетПроектов[[#This Row],[Фактические трудозатраты (в часах)]]-УчетПроектов[[#This Row],[Прогнозируемые трудозатраты \n(в часах)]])/УчетПроектов[[#This Row],[Прогнозируемые трудозатраты \n(в часах)]])>ПроцентОтметки,1,0)),\"\")","v":0},200,{"$f":"IFERROR(IF(УчетПроектов[[#This Row],[Фактическая длительность (в днях)]]=0,\"\",IF(ABS((УчетПроектов[[#This Row],[Фактическая длительность (в днях)]]-УчетПроектов[[#This Row],[Прогнозируемая длительность \n(в днях)]])/УчетПроектов[[#This Row],[Прогнозируемая длительность \n(в днях)]])>ПроцентОтметки,1,0)),\"\")","v":1},{"$f":"IF(COUNTA('Учет проектов'!$I13,'Учет проектов'!$J13)<>2,\"\",DAYS360('Учет проектов'!$I13,'Учет проектов'!$J13,FALSE))","v":60}]

{"sheet":"Настройки","index":1,"n_rows":10,"n_cols":3,"rows_kept":10}
[null,"Настройки"]
[]
[]
[null,"Название категории","Имя сотрудника"]
[null,"Категория 1","Сотрудник 1"]
[null,"Категория 2","Сотрудник 2"]
[null,"Категория 3","Сотрудник 3"]
[null,"Категория 4","Сотрудник 4"]
[null,"Категория 5","Сотрудник 5"]
[null,"Категория 6","Сотрудник 6"]